bitfinex/quotes_BTCUSD_20251201
["timestamp","ask_amount","ask_price","bid_price","bid_amount"]
[1764617523389,0.2358129,84813.0,84812.0,0.01252906]
[1764617523710,0.24759478,84816.0,84814.0,0.011447]
[1764617523711,0.01179022,84816.0,84814.0,0.011447]
[1764617523914,0.01179022,84816.0,84813.0,0.011447]
[1764617523915,0.01179036,84815.0,84813.0,0.011447]
[1764617524124,0.24759828,84815.0,84814.0,0.12885441]
[1764617525276,0.08838475,84815.0,84814.0,0.12985441]
[1764617525482,0.08838475,84815.0,84814.0,0.14853441]
[1764617525483,0.10017511,84815.0,84814.0,0.14853441]
[1764617525914,0.001,84816.0,84815.0,0.011447]
[1764617526112,0.01178953,84821.0,84814.0,0.13708741]
[1764617526113,0.01178995,84818.0,84814.0,0.13608741]
[1764617526311,0.24759074,84818.0,84817.0,0.011447]
[1764617526536,0.23580734,84815.0,84814.0,0.14853441]
[1764617526830,0.23580734,84815.0,84814.0,0.01868]
[1764617527240,0.2358129,84813.0,84812.0,8.206e-05]
[1764617529119,0.2378129,84813.0,84812.0,8.206e-05]
[1764617530549,0.2378129,84813.0,84812.0,0.01152906]
[1764617531632,0.2358129,84813.0,84812.0,0.01152906]
[1764617531925,0.2358129,84813.0,84812.0,0.01252906]
[1764617531926,0.2368129,84813.0,84812.0,0.01252906]
[1764617532141,0.2358129,84813.0,84812.0,0.01252906]
[1764617532346,0.23581012,84814.0,84812.0,8.206e-05]
[1764617532487,0.23581012,84814.0,84813.0,0.12885441]
[1764617532689,0.01179008,84817.0,84815.0,0.011447]
[1764617532990,0.24758368,84820.0,84819.0,0.011447]
[1764617533583,0.23577744,84826.0,84820.0,0.011447]
[1764617533584,0.24758154,84821.0,84820.0,0.011447]
[1764617534140,0.23578521,84823.0,84822.0,0.011447]
[1764617534818,0.23579126,84821.0,84820.0,0.011447]
[1764617534955,0.24757737,84822.0,84821.0,0.011447]
[1764617535357,0.24757297,84824.0,84820.0,0.001]
[1764617535560,0.24757297,84824.0,84823.0,0.011447]
[1764617535979,0.23579066,84821.0,84820.0,0.401]
[1764617536324,0.23579066,84821.0,84820.0,0.412447]
[1764617536460,0.23579066,84821.0,84820.0,0.411447]
[1764617536912,0.23579066,84821.0,84820.0,0.4]
[1764617537114,0.23579066,84821.0,84820.0,0.411447]
[1764617537528,0.23579066,84821.0,84820.0,0.412447]
[1764617537994,0.01178814,84831.0,84820.0,0.41278967]
[1764617538197,0.24755976,84828.0,84827.0,0.12885441]
[1764617538420,0.24755976,84828.0,84827.0,0.14753441]
[1764617538841,0.24755976,84828.0,84827.0,0.13608741]
[1764617539048,0.24755976,84828.0,84827.0,0.14753441]
[1764617539253,0.24955976,84828.0,84827.0,0.14753441]
[1764617539641,0.24955976,84828.0,84827.0,0.01868]
[1764617540298,0.24955976,84828.0,84827.0,0.030127]
[1764617540558,0.24755976,84828.0,84827.0,0.01868]
[1764617540737,0.24755976,84828.0,84827.0,0.030127]
[1764617540939,0.24955976,84828.0,84827.0,0.030127]
[1764617541303,0.24955976,84828.0,84827.0,0.01868]
[1764617541495,0.24955976,84828.0,84827.0,0.030127]
[1764617543761,0.24955976,84828.0,84827.0,0.01868]
[1764617544118,0.24955976,84828.0,84827.0,0.030127]
[1764617544523,0.24955976,84828.0,84827.0,0.01868]
[1764617545428,0.24955976,84828.0,84827.0,0.030127]
[1764617548199,0.24955976,84828.0,84827.0,0.01868]
[1764617548433,0.24955976,84828.0,84827.0,0.030127]
[1764617548634,0.002,84828.0,84827.0,0.030127]
[1764617548962,0.002,84828.0,84827.0,0.26590098]
[1764617549667,0.24754638,84833.0,84832.0,0.011447]
[1764617550236,0.6294736,84860.0,84827.0,0.01868]
[1764617550237,0.01178772,84834.0,84827.0,0.01868]
[1764617550388,0.24754503,84834.0,84833.0,0.011447]
[1764617550768,0.2357712,84828.0,84827.0,0.031127]
[1764617551997,0.2357712,84828.0,84827.0,0.030127]
[1764617552997,0.2357712,84828.0,84827.0,0.031127]
[1764617553725,0.2357712,84828.0,84827.0,0.030127]
[1764617553877,0.23576867,84829.0,84828.0,0.011447]
[1764617554517,0.23576867,84829.0,84828.0,0.411447]
[1764617556045,0.23576867,84829.0,84828.0,0.412447]
[1764617557371,0.23576867,84829.0,84828.0,0.012447]
[1764617557604,0.23676867,84829.0,84828.0,0.012447]
[1764617558154,0.23676867,84829.0,84828.0,0.001]
[1764617558155,0.67717608,84829.0,84828.0,0.001]
[1764617558366,0.55976867,84829.0,84828.0,0.001]
[1764617559125,0.55976867,84829.0,84805.0,0.01179175]
[1764617559126,0.2358129,84813.0,84805.0,0.01179175]
[1764617559342,0.2358129,84813.0,84812.0,0.01152906]
[1764617560382,0.2358129,84813.0,84812.0,8.206e-05]
[1764617560587,0.06583932,84813.0,84812.0,8.206e-05]
[1764617561452,0.06583932,84813.0,84812.0,0.00108206]
[1764617561721,0.06483932,84813.0,84812.0,0.00108206]
[1764617561934,0.06483932,84813.0,84812.0,0.01152906]
[1764617562143,0.06583932,84813.0,84812.0,0.01152906]
[1764617562486,0.06583932,84813.0,84812.0,0.01252906]
[1764617562893,0.06483932,84813.0,84812.0,0.01252906]
[1764617563098,0.06483932,84813.0,84812.0,0.01152906]
[1764617563333,0.06583932,84813.0,84812.0,0.01152906]
[1764617563537,0.06483932,84813.0,84812.0,0.01152906]
[1764617563945,0.06583932,84813.0,84812.0,0.01152906]
[1764617564896,0.06483932,84813.0,84812.0,8.206e-05]
[1764617565096,0.06483932,84813.0,84812.0,0.01252906]
[1764617565354,0.06583932,84813.0,84812.0,0.00108206]
[1764617565506,0.06483932,84813.0,84812.0,0.00108206]
[1764617565692,0.06483932,84813.0,84812.0,8.206e-05]
[1764617565894,0.06583932,84813.0,84812.0,8.206e-05]
[1764617566684,0.06483932,84813.0,84812.0,8.206e-05]
[1764617566924,0.06583932,84813.0,84812.0,8.206e-05]
[1764617567729,0.06583932,84813.0,84812.0,0.01152906]
[1764617568163,0.06483932,84813.0,84812.0,0.01152906]
[1764617568542,0.06583932,84813.0,84812.0,0.01152906]
[1764617568743,0.06483932,84813.0,84812.0,0.01152906]
[1764617569658,0.06583932,84813.0,84812.0,0.01152906]
[1764617569862,0.06483932,84813.0,84812.0,0.01152906]
[1764617570260,0.06583932,84813.0,84812.0,0.01152906]
[1764617571511,0.06483932,84813.0,84812.0,0.01152906]
[1764617571885,0.06583932,84813.0,84812.0,8.206e-05]
[1764617572239,0.06483932,84813.0,84812.0,0.01152906]
[1764617572450,0.06583932,84813.0,84812.0,0.01152906]
[1764617572943,0.06483932,84813.0,84812.0,0.01152906]
[1764617573150,0.06583932,84813.0,84812.0,0.01152906]
[1764617575856,0.001,84813.0,84812.0,0.01152906]
[1764617576401,0.001,84813.0,84812.0,0.36475215]
[1764617577045,0.001,84813.0,84812.0,0.36575215]
[1764617577372,0.001,84813.0,84812.0,0.12993647]
[1764617577718,0.24759812,84815.0,84812.0,0.36575215]
[1764617577922,0.24759812,84815.0,84814.0,0.011447]
[1764617578099,0.2358129,84813.0,84812.0,0.13093647]
[1764617578282,0.2358129,84813.0,84812.0,0.53093647]
[1764617579335,0.2358129,84813.0,84812.0,0.52993647]
[1764617579495,0.2358129,84813.0,84812.0,0.51848947]
[1764617579696,0.2358129,84813.0,84812.0,0.00208206]
[1764617580135,0.2358129,84813.0,84812.0,0.00108206]
[1764617580396,0.5588129,84813.0,84812.0,0.00108206]
[1764617580596,0.55884627,84801.0,84800.0,0.00174025]
[1764617580802,0.55896291,84801.0,84800.0,0.00174025]
[1764617581878,0.56196291,84801.0,84800.0,0.00274025]
[1764617582107,0.67937032,84801.0,84800.0,0.00274025]
[1764617582563,0.67937032,84801.0,84759.0,0.0005]
[1764617582564,0.23595757,84761.0,84759.0,0.0005]
[1764617583826,0.23607413,84761.0,84760.0,0.0012]
[1764617584231,0.23907413,84761.0,84760.0,0.0012]
[1764617584435,0.23607413,84761.0,84760.0,0.0002]
[1764617584883,0.23907413,84761.0,84760.0,0.0012]
[1764617586292,0.23907413,84761.0,84760.0,0.012647]
[1764617586736,0.00311656,84761.0,84760.0,0.012647]
[1764617586951,0.00311656,84761.0,84760.0,0.46372299]
[1764617587173,0.00311656,84761.0,84760.0,0.4012]
[1764617587568,0.00311656,84761.0,84760.0,0.411647]
[1764617587569,0.00011656,84761.0,84760.0,0.411647]
[1764617587827,0.00011656,84761.0,84760.0,0.011647]
[1764617588039,0.00011656,84761.0,84760.0,0.012647]
[1764617588040,0.00211656,84761.0,84760.0,0.012647]
[1764617588225,0.00211656,84761.0,84760.0,0.01295768]
[1764617588226,0.00011656,84761.0,84760.0,0.01295768]
[1764617588485,0.00011656,84761.0,84760.0,0.00251068]
[1764617588705,0.00011656,84761.0,84760.0,0.01395768]
[1764617589336,0.00011656,84761.0,84760.0,0.07648067]
[1764617589537,0.00011656,84761.0,84760.0,0.07748067]
[1764617589973,0.00011656,84761.0,84760.0,0.47748067]
[1764617590560,0.00011656,84761.0,84760.0,0.47648067]
[1764617590762,0.00011656,84761.0,84760.0,0.49420067]
[1764617591329,0.00011656,84761.0,84760.0,0.43167768]
[1764617591529,0.00111656,84761.0,84760.0,0.43467768]
[1764617591891,0.00011656,84761.0,84760.0,0.43267768]
[1764617592030,0.00111656,84761.0,84760.0,0.43667768]
[1764617592367,0.00111656,84761.0,84760.0,0.43567768]
[1764617592572,0.00111656,84761.0,84760.0,0.43667768]
[1764617593515,0.00011656,84761.0,84760.0,0.43267768]
[1764617593742,0.00111656,84761.0,84760.0,0.43467768]
[1764617594425,0.00011656,84761.0,84760.0,0.43267768]
[1764617594759,0.00111656,84761.0,84760.0,0.43467768]
[1764617595116,0.00111656,84761.0,84760.0,0.67063803]
[1764617595404,0.00111656,84761.0,84760.0,0.66963803]
[1764617595607,0.00111656,84761.0,84760.0,0.43467768]
[1764617595757,0.00111656,84761.0,84760.0,0.67063803]
[1764617595952,0.00111656,84761.0,84760.0,0.43367768]
[1764617596248,0.23707413,84761.0,84760.0,0.43367768]
[1764617596424,0.00111656,84761.0,84760.0,0.43467768]
[1764617596771,0.00111656,84761.0,84760.0,0.67063803]
[1764617598202,0.00111656,84761.0,84760.0,0.43467768]
[1764617598630,0.23707413,84761.0,84760.0,0.01595768]
[1764617598887,0.23707413,84761.0,84760.0,0.03467768]
[1764617599425,0.23707413,84761.0,84760.0,0.02323068]
[1764617600601,0.23707413,84761.0,84760.0,0.00251068]
[1764617600602,0.23607413,84761.0,84760.0,0.00251068]
[1764617600721,0.23607413,84761.0,84760.0,0.00351068]
[1764617600722,0.23807413,84761.0,84760.0,0.00351068]
[1764617601397,0.23807413,84761.0,84760.0,0.00251068]
[1764617602420,0.23607413,84761.0,84760.0,0.00151068]
[1764617602823,0.28088875,84761.0,84760.0,0.00151068]
[1764617603107,0.56007413,84761.0,84760.0,0.00151068]
[1764617603616,0.55907413,84761.0,84760.0,0.00151068]
[1764617603842,0.56207413,84761.0,84760.0,0.00251068]
[1764617607630,0.39859088,84761.0,84760.0,0.00251068]
[1764617611006,0.39859088,84761.0,84760.0,0.01395768]
[1764617611210,0.39859088,84761.0,84760.0,0.00251068]
[1764617611551,0.39859088,84761.0,84760.0,0.01395768]
[1764617611875,0.07559088,84761.0,84760.0,0.01395768]
[1764617612425,0.003,84761.0,84760.0,0.01395768]
[1764617612840,0.003,84761.0,84760.0,0.36732544]
[1764617613252,0.01179606,84774.0,84767.0,0.01179704]
[1764617613449,0.24771745,84774.0,84773.0,0.12885441]
[1764617613611,0.24770869,84777.0,84776.0,0.011447]
[1764617613809,0.24768443,84786.0,84781.0,0.01179509]
[1764617614014,0.24768443,84786.0,84785.0,0.011447]
[1764617614438,0.24768443,84786.0,84777.0,0.01179565]
[1764617614439,0.24770124,84780.0,84774.0,0.24771642]
[1764617614644,0.24770124,84780.0,84779.0,0.011447]
[1764617614984,0.23591326,84777.0,84773.0,0.13612741]
[1764617615125,0.24771161,84776.0,84775.0,0.011447]
[1764617615324,0.01179579,84776.0,84773.0,0.13612741]
[1764617615640,0.01179565,84777.0,84775.0,0.011447]
[1764617615641,0.002,84777.0,84775.0,0.011447]
[1764617615821,0.23591304,84777.0,84776.0,0.011447]
[1764617617311,0.23591304,84777.0,84773.0,0.13712741]
[1764617617312,0.23592139,84774.0,84773.0,0.13712741]
[1764617617513,0.23592139,84774.0,84773.0,0.14857441]
[1764617617668,0.23592139,84774.0,84773.0,0.13612741]
[1764617617871,0.23592139,84774.0,84773.0,0.14757441]
[1764617618495,0.23592139,84774.0,84773.0,0.13612741]
[1764617618695,0.323,84796.0,84773.0,0.13701198]
[1764617618872,0.24770284,84779.0,84778.0,0.011447]
[1764617619077,0.24770284,84779.0,84778.0,0.01216772]
[1764617621003,0.24770284,84779.0,84778.0,0.41416772]
[1764617623987,0.24770284,84779.0,84778.0,0.01416772]
[1764617624536,0.24770284,84779.0,84778.0,0.41416772]
[1764617626926,0.24768531,84785.0,84780.0,0.23590422]
[1764617627144,0.24768531,84785.0,84784.0,0.011447]
[1764617627346,0.24768531,84785.0,84784.0,0.030127]
[1764617627638,0.23587144,84792.0,84789.0,0.011447]
[1764617627639,0.2358749,84791.0,84789.0,0.011447]
[1764617627823,0.2358749,84791.0,84784.0,0.01868]
[1764617627824,0.24766575,84792.0,84790.0,0.11740741]
[1764617628025,0.24766575,84792.0,84791.0,0.011447]
[1764617628298,0.47164689,84810.0,84791.0,0.011447]
[1764617628300,0.01178897,84825.0,84814.0,0.0117905]
[1764617628505,0.01178995,84818.0,84815.0,0.01872]
[1764617628721,0.01178953,84821.0,84820.0,0.011447]
[1764617628959,1.0251704,84840.0,84804.0,0.011447]
[1764617628960,0.01179064,84813.0,84804.0,0.011447]
[1764617629132,0.01179064,84813.0,84805.0,0.01872]
[1764617629359,0.01179134,84808.0,84806.0,0.011447]
[1764617629561,0.01179092,84811.0,84808.0,0.011447]
[1764617629726,0.24772055,84813.0,84812.0,0.011447]
[1764617629925,0.01190744,84813.0,84812.0,0.011447]
[1764617630248,0.24772034,84813.0,84812.0,0.011447]
[1764617630930,0.0001168,84813.0,84812.0,0.011447]
[1764617631106,0.2359297,84813.0,84812.0,0.011447]
[1764617631307,0.0001168,84813.0,84812.0,0.011447]
[1764617631921,0.0001168,84813.0,84812.0,0.24726268]
[1764617632751,0.0011168,84813.0,84812.0,0.24726268]
[1764617632949,0.0011168,84813.0,84812.0,0.24826268]
[1764617633313,0.0001168,84813.0,84812.0,0.24826268]
[1764617633511,0.0001168,84813.0,84812.0,0.24726268]
[1764617633764,0.0001168,84813.0,84812.0,0.24826268]
[1764617634729,0.0001168,84813.0,84812.0,0.64826268]
[1764617635144,0.0001168,84813.0,84812.0,0.412447]
[1764617635326,0.0011168,84813.0,84812.0,0.64826268]
[1764617635725,0.0011168,84813.0,84812.0,0.64726268]
[1764617635955,0.0011168,84813.0,84812.0,0.64826268]
[1764617636152,0.0001168,84813.0,84812.0,0.64826268]
[1764617636349,0.0011168,84813.0,84812.0,0.64726268]
[1764617636757,0.0011168,84813.0,84812.0,0.64826268]
[1764617637423,0.0011168,84813.0,84812.0,0.71078567]
[1764617637625,0.0001168,84813.0,84812.0,0.71078567]
[1764617637979,0.0011168,84813.0,84812.0,0.47496999]
[1764617638431,0.0001168,84813.0,84812.0,0.47496999]
[1764617638723,0.0011168,84813.0,84812.0,0.47396999]
[1764617639207,0.0011168,84813.0,84812.0,0.47496999]
[1764617639400,0.0001168,84813.0,84812.0,0.47496999]
[1764617639558,0.0001168,84813.0,84812.0,0.47396999]
[1764617639759,0.0011168,84813.0,84812.0,0.47496999]
[1764617640106,0.2369297,84813.0,84812.0,0.47496999]
[1764617640457,0.2369297,84813.0,84812.0,0.46352299]
[1764617640458,0.0011168,84813.0,84812.0,0.46352299]
[1764617640659,0.0011168,84813.0,84812.0,1.03378567]
[1764617641228,0.0011168,84813.0,84812.0,1.05250567]
[1764617641429,0.0001168,84813.0,84812.0,1.05250567]
[1764617641684,0.0001168,84813.0,84812.0,1.05150567]
[1764617641847,0.0001168,84813.0,84812.0,1.05250567]
[1764617642280,0.0011168,84813.0,84812.0,0.82068999]
[1764617642431,0.011793,84796.0,84786.0,0.11740741]
[1764617642644,0.01179259,84799.0,84794.0,0.01179328]
[1764617642845,0.23586068,84796.0,84795.0,0.011447]
[1764617643043,0.01179287,84797.0,84793.0,0.01872]
[1764617643247,0.24872169,84813.0,84810.0,0.011447]
[1764617643449,0.24872169,84813.0,84798.0,0.01179273]
[1764617643450,0.0011168,84813.0,84812.0,0.11740741]
[1764617643678,0.2369297,84813.0,84812.0,0.12885441]
[1764617644132,0.2359297,84813.0,84812.0,0.12885441]
[1764617644837,0.0001168,84813.0,84812.0,0.12885441]
[1764617645031,0.2369297,84813.0,84812.0,0.12885441]
[1764617646319,0.2369297,84813.0,84812.0,0.12985441]
[1764617646528,0.0011168,84813.0,84812.0,0.12985441]
[1764617646718,0.2369297,84813.0,84812.0,0.12985441]
[1764617646959,0.0011168,84813.0,84812.0,0.12985441]
[1764617647467,0.0011168,84813.0,84812.0,0.42819308]
[1764617648005,0.0011168,84813.0,84812.0,0.1923774]
[1764617648345,0.2369297,84813.0,84812.0,0.12985441]
[1764617649538,0.2369297,84813.0,84812.0,0.001]
[1764617650145,0.2369297,84813.0,84812.0,0.012447]
[1764617650386,0.0011168,84813.0,84812.0,0.012447]
[1764617650628,0.2369297,84813.0,84812.0,0.012447]
[1764617651161,0.0011168,84813.0,84812.0,0.012447]
[1764617651383,0.2369297,84813.0,84812.0,0.012447]
[1764617651784,0.0011168,84813.0,84812.0,0.012447]
[1764617652190,0.0011168,84813.0,84812.0,0.24826268]
[1764617652366,0.0011168,84813.0,84812.0,0.012447]
[1764617652707,0.0011168,84813.0,84812.0,0.42819308]
[1764617652851,0.0011168,84813.0,84812.0,0.82819308]
[1764617653052,0.0011168,84813.0,84812.0,0.5923774]
[1764617653247,0.0011168,84813.0,84812.0,0.82819308]
[1764617655389,0.0011168,84813.0,84812.0,1.15119308]
[1764617656466,0.0001168,84813.0,84812.0,1.15119308]
[1764617656669,0.0001168,84813.0,84812.0,1.15519308]
[1764617656670,0.0011168,84813.0,84812.0,1.15519308]
[1764617657091,0.0011168,84813.0,84812.0,1.15419308]
[1764617657297,0.0011168,84813.0,84812.0,1.15519308]
[1764617657676,0.0011168,84813.0,84812.0,1.15419308]
[1764617658040,0.0011168,84813.0,84812.0,1.15619308]
[1764617659374,0.0011168,84813.0,84812.0,0.83319308]
[1764617659779,0.0011168,84813.0,84812.0,1.15619308]
[1764617660206,0.0011168,84813.0,84812.0,0.33319308]
[1764617660608,0.0011168,84813.0,84812.0,0.77360049]
[1764617662239,0.0011168,84813.0,84812.0,0.83612348]
[1764617662845,0.0011168,84813.0,84812.0,0.82467648]
[1764617663060,0.0011168,84813.0,84812.0,0.77360049]
[1764617663264,0.0011168,84813.0,84812.0,0.79232049]
[1764617665416,0.0011168,84813.0,84812.0,0.55650481]
[1764617665572,0.0011168,84813.0,84812.0,0.79232049]
[1764617666343,0.2369297,84813.0,84812.0,0.23350481]
[1764617666542,0.2369297,84813.0,84812.0,0.20333781]
[1764617666794,0.2369297,84813.0,84812.0,0.23350481]
[1764617666951,0.0011168,84813.0,84812.0,0.23350481]
[1764617667352,0.0001168,84813.0,84812.0,0.46332049]
[1764617667752,0.0011168,84813.0,84812.0,0.46632049]
[1764617668379,0.0011168,84813.0,84812.0,0.23050481]
[1764617669192,0.2369297,84813.0,84812.0,0.23050481]
[1764617669700,0.0011168,84813.0,84812.0,0.46632049]
[1764617671043,0.0011168,84813.0,84812.0,0.23050481]
[1764617671269,0.0011168,84813.0,84812.0,0.46632049]
[1764617672140,0.0011168,84813.0,84812.0,0.23050481]
[1764617672341,0.0011168,84813.0,84812.0,0.46632049]
[1764617672533,0.00893595,84816.0,84815.0,0.011447]
[1764617672994,0.23580459,84816.0,84815.0,0.011447]
[1764617673191,0.23580459,84816.0,84815.0,0.411447]
[1764617673628,0.24759242,84817.0,84816.0,0.011447]
[1764617674188,0.24758899,84818.0,84816.0,0.011447]
[1764617674552,0.24758174,84821.0,84820.0,0.011447]
[1764617675939,0.24757605,84823.0,84819.0,0.01178981]
[1764617676166,0.24757605,84823.0,84822.0,0.011447]
[1764617676296,0.24757605,84823.0,84822.0,0.030167]
[1764617677289,0.24757605,84823.0,84822.0,0.031167]
[1764617678174,0.23574842,84837.0,84828.0,0.011447]
[1764617678308,0.0117873,84837.0,84828.0,0.2472182]
[1764617678513,0.01178703,84839.0,84828.0,0.2472182]
[1764617678514,0.24752799,84839.0,84828.0,0.36462561]
[1764617678720,0.61043783,84850.0,84828.0,0.36462561]
[1764617678721,0.23571054,84850.0,84828.0,0.68762561]
[1764617678945,0.01178564,84849.0,84828.0,0.68762561]
[1764617679147,0.23572218,84846.0,84828.0,0.68762561]
[1764617679357,0.01178411,84860.0,84828.0,0.7501486]
[1764617679676,0.01178328,84866.0,84828.0,0.7511486]
[1764617679877,0.24744637,84867.0,84828.0,0.7511486]
[1764617680080,0.00244537,84829.0,84828.0,0.7541486]
[1764617680282,0.00244537,84829.0,84828.0,0.7511486]
[1764617680489,0.00344537,84829.0,84828.0,1.1541486]
[1764617681061,0.00344537,84829.0,84828.0,1.1531486]
[1764617681264,0.00344537,84829.0,84828.0,1.1541486]
[1764617681785,0.00144537,84829.0,84828.0,1.1501486]
[1764617681984,0.00144537,84829.0,84828.0,1.1561486]
[1764617682205,0.00244537,84829.0,84828.0,1.1581486]
[1764617682519,0.00144537,84829.0,84828.0,1.1521486]
[1764617682696,0.00244537,84829.0,84828.0,1.1551486]
[1764617682900,0.00144537,84829.0,84828.0,1.1521486]
[1764617683303,0.00130329,84829.0,84828.0,1.1581486]
[1764617684159,0.00130329,84829.0,84828.0,1.1561486]
[1764617684523,0.00130329,84829.0,84828.0,1.1581486]
[1764617686452,0.00130329,84829.0,84828.0,1.09562561]
[1764617686653,0.00130329,84829.0,84828.0,1.11434561]
[1764617686855,0.00130329,84829.0,84828.0,1.1768686]
[1764617687209,0.00130329,84829.0,84828.0,1.11434561]
[1764617687807,0.00130329,84829.0,84828.0,1.11234561]
[1764617688184,0.00130329,84829.0,84828.0,1.11434561]
[1764617688404,0.00030329,84829.0,84828.0,0.78534561]
[1764617688601,0.00130329,84829.0,84828.0,1.11334561]
[1764617688805,0.00130329,84829.0,84828.0,0.79034561]
[1764617689190,0.00130329,84829.0,84828.0,1.11334561]
[1764617690281,0.00130329,84829.0,84828.0,1.1758686]
[1764617695802,0.06512904,84853.0,84850.0,0.23570797]
[1764617695986,0.01178522,84852.0,84851.0,0.030167]
[1764617696180,0.24748974,84852.0,84851.0,0.030167]
[1764617696386,0.24748974,84852.0,84851.0,0.430167]
[1764617696889,0.00011675,84853.0,84851.0,0.66587382]
[1764617697214,0.00011675,84853.0,84852.0,0.011447]
[1764617697618,0.00011675,84853.0,84852.0,0.24715152]
[1764617698401,0.00011675,84853.0,84852.0,0.24815152]
[1764617699095,0.00011675,84853.0,84852.0,0.012447]
[1764617699266,0.00011675,84853.0,84852.0,0.24715152]
[1764617700111,0.00011675,84853.0,84852.0,0.64815152]
[1764617700511,0.00011675,84853.0,84852.0,0.65015152]
[1764617700896,0.00011675,84853.0,84852.0,0.431127]
[1764617701050,0.23581849,84853.0,84852.0,0.41968]
[1764617701264,0.23581849,84853.0,84852.0,0.433127]
[1764617701465,0.23581849,84853.0,84852.0,0.003]
[1764617701845,0.23660383,84853.0,84852.0,0.003]
[1764617702213,0.23660383,84853.0,84852.0,0.014447]
[1764617702807,0.23660383,84853.0,84852.0,0.013447]
[1764617703228,0.00090209,84853.0,84852.0,0.003]
[1764617703462,0.00090209,84853.0,84852.0,0.25015152]
[1764617703667,0.00090209,84853.0,84852.0,0.013447]
[1764617703886,0.00090209,84853.0,84852.0,0.011447]
[1764617704095,0.00090209,84853.0,84852.0,0.24715152]
[1764617704271,0.00090209,84853.0,84852.0,0.57215152]
[1764617704638,0.00090209,84853.0,84852.0,0.57015152]
[1764617704843,0.00190209,84853.0,84852.0,0.334447]
[1764617705056,0.00090209,84853.0,84852.0,0.334447]
[1764617705260,0.00090209,84853.0,84852.0,0.030127]
[1764617705565,0.00190209,84853.0,84852.0,0.26883152]
[1764617706169,0.00190209,84853.0,84852.0,0.26983152]
[1764617706575,0.00190209,84853.0,84852.0,0.26883152]
[1764617706953,0.00090209,84853.0,84852.0,0.66683152]
[1764617707176,0.00090209,84853.0,84852.0,0.66883152]
[1764617708136,0.00090209,84853.0,84852.0,1.05435451]
[1764617708918,0.00019003,84853.0,84852.0,1.04190751]
[1764617709113,0.00019003,84853.0,84852.0,1.05335451]
[1764617709369,0.00019003,84853.0,84852.0,1.05435451]
[1764617709777,0.00019003,84853.0,84852.0,1.05335451]
[1764617710252,0.0004,84890.0,84869.0,0.5586573]
[1764617710464,0.00078902,84870.0,84869.0,0.65130729]
[1764617710835,0.00078902,84870.0,84869.0,1.05130729]
[1764617711481,0.00178902,84870.0,84869.0,1.05530729]
[1764617711682,0.00078902,84870.0,84869.0,1.03986029]
[1764617711939,0.00078902,84870.0,84869.0,1.05130729]
[1764617712146,0.00078902,84870.0,84869.0,1.05230729]
[1764617712548,0.0004,84890.0,84889.0,0.62112477]
[1764617712747,0.00051666,84890.0,84889.0,0.65125177]
[1764617713149,0.00051666,84890.0,84889.0,1.05125177]
[1764617713405,1e-08,84890.0,84889.0,1.14060127]
[1764617713611,0.24783412,84909.0,84899.0,0.55857403]
[1764617713806,0.24783412,84909.0,84899.0,0.65122402]
[1764617714185,0.24783412,84909.0,84899.0,1.05122402]
[1764617715016,0.24783412,84909.0,84908.0,0.62107205]
[1764617715215,0.24783412,84909.0,84908.0,0.74992646]
[1764617715604,0.24783412,84909.0,84908.0,1.14992646]
[1764617716094,0.0004,84950.0,84909.0,0.39696999]
[1764617716095,1e-08,84910.0,84909.0,0.39696999]
[1764617716297,0.0004,84950.0,84919.0,0.62104154]
[1764617716502,0.00051662,84920.0,84919.0,0.65116854]
[1764617716813,0.002707,84920.0,84919.0,0.65116854]
[1764617717479,0.002707,84920.0,84919.0,1.05116854]
[1764617718101,0.003707,84920.0,84919.0,1.05716854]
[1764617718661,0.003707,84920.0,84919.0,1.06893989]
[1764617718870,0.003707,84920.0,84919.0,1.07093989]
[1764617719491,0.0004,84950.0,84930.0,0.00999999]
[1764617719705,0.00051659,84950.0,84949.0,0.74981277]
[1764617719945,0.00051659,84950.0,84949.0,0.76849277]
[1764617720140,0.00051659,84950.0,84949.0,1.16849277]
[1764617720697,0.00151659,84950.0,84949.0,1.16849277]
[1764617720842,0.00051659,84950.0,84949.0,1.16849277]
[1764617721044,0.00051659,84950.0,84949.0,1.17149277]
[1764617721783,0.00051659,84950.0,84949.0,0.85485441]
[1764617721980,0.00051659,84950.0,84949.0,0.53185441]
[1764617722143,0.00051659,84950.0,84949.0,0.55053441]
[1764617722346,0.00051659,84950.0,84949.0,0.55153441]
[1764617724297,0.00051659,84950.0,84949.0,0.004]
[1764617724500,0.00051659,84950.0,84949.0,0.015447]
[1764617725387,0.00149662,84950.0,84949.0,0.014447]
[1764617725532,0.00149662,84950.0,84949.0,0.335447]
[1764617725990,0.00149662,84950.0,84949.0,0.57088237]
[1764617726226,0.00149662,84950.0,84949.0,0.323]
[1764617726417,0.00149662,84950.0,84949.0,0.353127]
[1764617726566,0.00149662,84950.0,84949.0,0.354127]
[1764617727118,0.00149662,84950.0,84949.0,0.356127]
[1764617727921,0.00149662,84950.0,84949.0,0.59156237]
[1764617728265,0.00149662,84950.0,84949.0,0.99156237]
[1764617728685,0.00149662,84950.0,84949.0,0.99056237]
[1764617728909,0.00149662,84950.0,84949.0,0.99156237]
[1764617729287,0.00149662,84950.0,84949.0,0.98956237]
[1764617730992,0.00149662,84950.0,84949.0,0.98856237]
[1764617731193,0.00149662,84950.0,84949.0,0.98956237]
[1764617732137,0.00149662,84950.0,84949.0,1.05208536]
[1764617733181,0.00149662,84950.0,84949.0,1.06385325]
[1764617733787,0.00149662,84950.0,84949.0,1.06585325]
[1764617733993,0.0799328,84978.0,84977.0,0.011447]
[1764617734198,0.00038856,84978.0,84977.0,0.030127]
[1764617734574,0.0013028,84978.0,84977.0,0.2654848]
[1764617735200,0.0033028,84978.0,84977.0,0.2654848]
[1764617735942,0.0033028,84978.0,84977.0,0.2664848]
[1764617736095,0.0013028,84978.0,84977.0,0.2664848]
[1764617736298,0.0043028,84978.0,84977.0,0.65200779]
[1764617736703,0.0013028,84978.0,84977.0,0.65200779]
[1764617737230,0.0013028,84978.0,84977.0,0.65100779]
[1764617737692,0.0013028,84978.0,84977.0,0.65300779]
[1764617738085,0.0013028,84978.0,84977.0,0.65100779]
[1764617738298,0.0013028,84978.0,84977.0,1.03432779]
[1764617738464,0.0013028,84978.0,84977.0,0.736447]
[1764617738662,0.0013028,84978.0,84977.0,0.755127]
[1764617738896,0.0013028,84978.0,84977.0,0.753127]
[1764617739204,0.0013028,84978.0,84977.0,0.755127]
[1764617739784,0.23665783,84978.0,84977.0,0.736447]
[1764617739990,0.23665783,84978.0,84977.0,0.413447]
[1764617740184,0.23665783,84978.0,84977.0,0.002]
[1764617740391,0.23665783,84978.0,84977.0,0.032127]
[1764617740863,0.23665783,84978.0,84977.0,0.030127]
[1764617741296,0.23665783,84978.0,84977.0,0.012447]
[1764617741497,0.23665783,84978.0,84977.0,0.031127]
[1764617741701,0.23765783,84978.0,84977.0,0.031127]